[Event "European Online Club-ch-H 2021"]
[Site "Online"]
[Date "2021.03.27"]
[Round "6.5"]
[White "Vaisser, Anatoly"]
[Black "Kazakov, Mikhail"]
[Result "0-1"]
[ECO "D10"]
[WhiteElo "2501"]
[BlackElo "2516"]
[Annotator "ChessBase"]
[PlyCount "70"]
[EventDate "2021.03.27"]
[EventType "team-tourn"]
[EventCountry "NET"]
[SourceTitle "playchess.com"]
[Source "ChessBase"]
[SourceQuality "1"]
[TimeControl "900+5"]

1. d4 {[%emt 0:00:00]} d5 {[%emt 0:00:12]} 2. c4 {[%emt 0:00:03]} c6 {[%emt 0:00:01]} 3. cxd5 {[%emt 0:00:03]} cxd5 {[%emt 0:00:02]} 4. Bf4 {[%emt 0:00:04]} Nf6 {[%emt 0:00:07]} 5. e3 {[%emt 0:00:04]} Nc6 {[%emt 0:00:09]} 6. Nc3 {[%emt 0:00:03]} a6 {[%emt 0:00:06]} 7. Bd3 {[%emt 0:00:07]} e6 {[%emt 0:00:03]} 8. Rc1 {[%emt 0:00:09]} Be7 {[%emt 0:00:11]} 9. h3 {[%emt 0:00:25]} O-O {[%emt 0:00:12]} 10. Nf3 {[%emt 0:00:19]} Bd7 {[%emt 0:00:12]} 11. g4 {[%emt 0:00:14]} Rc8 {[%emt 0:01:57]} 12. g5 {[%emt 0:00:22]} Nh5 {[%emt 0:00:15]} 13. Bh2 {[%emt 0:00:21]} g6 {[%emt 0:01:21]} 14. h4 {[%emt 0:00:11]} b5 {[%emt 0:00:50]} 15. Ne5 {[%emt 0:00:45]} Nxe5 {[%emt 0:00:07]} 16. Bxe5 {[%emt 0:00:05]} b4 {[%emt 0:00:15]} 17. Ne2 {[%emt 0:00:09]} Rxc1 {[%emt 0:00:22]} 18. Nxc1 {[%emt 0:00:21]} Bb5 {[%emt 0:00:31]} 19. Bxb5 {[%emt 0:00:21]} axb5 {[%emt 0:00:03]} 20. Nd3 {[%emt 0:00:23]} Qa5 {[%emt 0:00:16]} 21. Qb3 {[%emt 0:00:24]} Rc8 {[%emt 0:00:18]} 22. Ke2 {[%emt 0:00:46]} Rc4 {[%emt 0:00:20]} 23. Bh2 {[%emt 0:00:40]} Ng7 {[%emt 0:01:14]} 24. Ne5 {[%emt 0:00:15]} Qa8 {[%emt 0:00:24]} 25. Rd1 {[%emt 0:00:26]} Nf5 {[%emt 0:00:12]} 26. Nxc4 {[%emt 0:01:07]} bxc4 {[%emt 0:02:04]} 27. Qc2 {[%emt 0:00:03]} Qxa2 {[%emt 0:00:03]} 28. e4 {[%emt 0:02:14]} dxe4 {[%emt 0:01:12]} 29. d5 {[%emt 0:00:28]} exd5 {[%emt 0:00:47]} 30. Rxd5 {[%emt 0:00:20]} c3 {[%emt 0:00:36]} 31. Qxe4 {[%emt 0:01:21]} cxb2 {[%emt 0:00:13]} 32. Rd8+ {[%emt 0:00:29]} Bxd8 {[%emt 0:00:06]} 33. Qe8+ {[%emt 0:00:04]} Kg7 {[%emt 0:00:01]} 34. Be5+ {[%emt 0:00:05]} f6 {[%emt 0:00:03]} 35. Qd7+ {[%emt 0:04:33]} Qf7 {[%emt 0:00:54]} 0-1

[Event "European Online Club-ch-H 2021"]
[Site "Online"]
[Date "2021.03.27"]
[Round "6.6"]
[White "Sabuk, Piotr"]
[Black "Roux, Olivier"]
[Result "1-0"]
[ECO "A43"]
[WhiteElo "2366"]
[BlackElo "2156"]
[Annotator "NA"]
[PlyCount "89"]
[EventDate "2021.03.27"]
[EventType "team-tourn"]
[EventCountry "NET"]
[SourceTitle "playchess.com"]
[Source "ChessBase"]
[SourceQuality "1"]
[TimeControl "900+5"]

1. d4 {[%emt 0:00:00]} c5 {[%emt 0:00:04]} 2. d5 {[%emt 0:00:02]} Nf6 {[%emt 0:00:03]} 3. Nc3 {[%emt 0:00:03]} d6 {[%emt 0:00:03]} 4. e4 {[%emt 0:00:02]} g6 {[%emt 0:00:01]} 5. Nf3 {[%emt 0:00:07]} Bg7 {[%emt 0:00:01]} 6. Be2 {[%emt 0:00:07]} O-O {[%emt 0:00:44]} 7. O-O {[%emt 0:00:02]} Bg4 {[%emt 0:00:21]} 8. h3 {[%emt 0:00:45]} Bxf3 {[%emt 0:00:04]} 9. Bxf3 {[%emt 0:00:02]} Nbd7 {[%emt 0:00:16]} 10. Be2 {[%emt 0:00:02]} a6 {[%emt 0:00:12]} 11. a4 {[%emt 0:00:02]} b6 {[%emt 0:00:07]} 12. Be3 {[%emt 0:00:10]} Qc7 {[%emt 0:00:07]} 13. Qd2 {[%emt 0:00:25]} Rfd8 {[%emt 0:00:24]} 14. b3 {[%emt 0:00:15]} Qb7 {[%emt 0:00:32]} 15. Rad1 {[%emt 0:00:33]} Rac8 {[%emt 0:00:32]} 16. f3 {[%emt 0:00:42]} Ne8 {[%emt 0:00:21]} 17. f4 {[%emt 0:00:19]} Nc7 {[%emt 0:00:11]} 18. Bf3 {[%emt 0:00:07]} b5 {[%emt 0:01:10]} 19. e5 {[%emt 0:00:09]} Nf8 {[%emt 0:00:17]} 20. e6 {[%emt 0:00:07]} fxe6 {[%emt 0:01:41]} 21. dxe6 {[%emt 0:00:04]} Bxc3 {[%emt 0:00:42]} 22. Qxc3 {[%emt 0:00:26]} d5 {[%emt 0:00:04]} 23. f5 {[%emt 0:01:01]} Qb6 {[%emt 0:00:37]} 24. Bxc5 {[%emt 0:00:31]} Qc6 {[%emt 0:00:15]} 25. Qe3 {[%emt 0:01:09]} gxf5 {[%emt 0:01:20]} 26. Bxe7 {[%emt 0:01:44]} Re8 {[%emt 0:00:42]} 27. Qg5+ {[%emt 0:01:44]} Ng6 {[%emt 0:00:05]} 28. Bf6 {[%emt 0:00:06]} Qxe6 {[%emt 0:00:12]} 29. Bd4 {[%emt 0:00:02]} Rcd8 {[%emt 0:01:06]} 30. h4 {[%emt 0:00:31]} Qd6 {[%emt 0:00:35]} 31. h5 {[%emt 0:00:19]} Ne6 {[%emt 0:00:04]} 32. Qxf5 {[%emt 0:00:41]} Nxd4 {[%emt 0:00:11]} 33. Rxd4 {[%emt 0:00:05]} Ne5 {[%emt 0:00:58]} 34. Bxd5+ {[%emt 0:00:31]} Kh8 {[%emt 0:00:09]} 35. Rfd1 {[%emt 0:00:35]} Rf8 {[%emt 0:00:54]} 36. Qxh7+ {[%emt 0:00:15]} Kxh7 {[%emt 0:00:03]} 37. Be4+ {[%emt 0:00:01]} Kh6 {[%emt 0:00:03]} 38. Rxd6+ {[%emt 0:00:03]} Rxd6 {[%emt 0:00:03]} 39. Rxd6+ {[%emt 0:00:02]} Kxh5 {[%emt 0:00:01]} 40. a5 {[%emt 0:00:43]} Kg4 {[%emt 0:00:09]} 41. Rxa6 {[%emt 0:00:04]} Kf4 {[%emt 0:00:05]} 42. Bd5 {[%emt 0:00:18]} Ke3 {[%emt 0:00:11]} 43. Re6 {[%emt 0:00:14]} Kd4 {[%emt 0:00:02]} 44. Bb7 {[%emt 0:00:06]} Ng4 {[%emt 0:00:40]} 45. Re4+ {[%emt 0:00:07]} 1-0

[Event "European Online Club-ch-H 2021"]
[Site "Online"]
[Date "2021.03.27"]
[Round "6.7"]
[White "Kirszenberg, Marc"]
[Black "Valuet, Bertrand"]
[Result "1/2-1/2"]
[ECO "E25"]
[WhiteElo "2130"]
[BlackElo "2217"]
[Annotator "NA"]
[PlyCount "61"]
[EventDate "2021.03.27"]
[EventType "team-tourn"]
[EventCountry "NET"]
[SourceTitle "playchess.com"]
[Source "ChessBase"]
[SourceQuality "1"]
[TimeControl "900+5"]

1. d4 {[%emt 0:00:00]} Nf6 {[%emt 0:00:04]} 2. c4 {[%emt 0:00:02]} e6 {[%emt 0:00:01]} 3. Nc3 {[%emt 0:00:02]} Bb4 {[%emt 0:00:03]} 4. f3 {[%emt 0:00:01]} d5 {[%emt 0:00:13]} 5. a3 {[%emt 0:00:02]} Bxc3+ {[%emt 0:00:03]} 6. bxc3 {[%emt 0:00:01]} c5 {[%emt 0:00:06]} 7. cxd5 {[%emt 0:00:02]} Nxd5 {[%emt 0:00:03]} 8. dxc5 {[%emt 0:00:02]} f5 {[%emt 0:00:02]} 9. c4 {[%emt 0:00:02]} Qh4+ {[%emt 0:01:00]} 10. g3 {[%emt 0:00:03]} Qxc4 {[%emt 0:00:02]} 11. e4 {[%emt 0:00:04]} Qc3+ {[%emt 0:00:02]} 12. Bd2 {[%emt 0:00:03]} Qe5 {[%emt 0:00:02]} 13. Bg2 {[%emt 0:00:45]} fxe4 {[%emt 0:00:18]} 14. f4 {[%emt 0:00:07]} Qf5 {[%emt 0:01:28]} 15. Qc2 {[%emt 0:00:41]} Nf6 {[%emt 0:00:46]} 16. Be3 {[%emt 0:01:31]} O-O {[%emt 0:03:00]} 17. Nh3 {[%emt 0:00:27]} Nd5 {[%emt 0:01:46]} 18. Qd2 {[%emt 0:01:06]} Nd7 {[%emt 0:00:45]} 19. Ng5 {[%emt 0:00:07]} Nxe3 {[%emt 0:00:09]} 20. Qxe3 {[%emt 0:00:02]} Nxc5 {[%emt 0:00:08]} 21. Nxe4 {[%emt 0:00:10]} Nxe4 {[%emt 0:00:25]} 22. Bxe4 {[%emt 0:00:03]} Qa5+ {[%emt 0:00:06]} 23. Kf2 {[%emt 0:00:32]} Bd7 {[%emt 0:00:24]} 24. Rhc1 {[%emt 0:00:11]} e5 {[%emt 0:01:03]} 25. Rc5 {[%emt 0:02:30]} Qa4 {[%emt 0:00:05]} 26. Rxe5 {[%emt 0:00:09]} Rae8 {[%emt 0:00:04]} 27. Bd5+ {[%emt 0:00:35]} Kh8 {[%emt 0:00:06]} 28. Re1 {[%emt 0:00:45]} Rxe5 {[%emt 0:00:13]} 29. Qxe5 {[%emt 0:00:04]} Qxa3 {[%emt 0:00:04]} 30. Bxb7 {[%emt 0:00:32]} Bg4 {[%emt 0:00:16]} 31. Qe7 {[%emt 0:01:09]} 1/2-1/2

[Event "European Online Club-ch-H 2021"]
[Site "Online"]
[Date "2021.03.27"]
[Round "6.8"]
[White "Santamaria, Jorge"]
[Black "Coupet, Pascal"]
[Result "1-0"]
[ECO "D02"]
[WhiteElo "2185"]
[BlackElo "2233"]
[Annotator "NA"]
[PlyCount "65"]
[EventDate "2021.03.27"]
[EventType "team-tourn"]
[EventCountry "NET"]
[SourceTitle "playchess.com"]
[Source "ChessBase"]
[SourceQuality "1"]
[TimeControl "900+5"]

1. g3 {[%emt 0:00:00]} d5 {[%emt 0:00:12]} 2. Nf3 {[%emt 0:00:04]} Nc6 {[%emt 0:00:04]} 3. d4 {[%emt 0:00:04]} g6 {[%emt 0:00:14]} 4. Bg2 {[%emt 0:00:04]} Bg7 {[%emt 0:00:01]} 5. O-O {[%emt 0:00:17]} Bg4 {[%emt 0:00:24]} 6. c3 {[%emt 0:00:07]} Qd7 {[%emt 0:00:13]} 7. a4 {[%emt 0:00:14]} h5 {[%emt 0:01:08]} 8. h4 {[%emt 0:00:23]} Nh6 {[%emt 0:00:16]} 9. a5 {[%emt 0:00:15]} O-O {[%emt 0:01:53]} 10. Nbd2 {[%emt 0:01:12]} Rad8 {[%emt 0:00:45]} 11. Re1 {[%emt 0:01:04]} Rfe8 {[%emt 0:01:04]} 12. Qb3 {[%emt 0:00:19]} b6 {[%emt 0:00:39]} 13. axb6 {[%emt 0:00:24]} axb6 {[%emt 0:00:06]} 14. e4 {[%emt 0:01:08]} dxe4 {[%emt 0:00:26]} 15. Nxe4 {[%emt 0:00:04]} e5 {[%emt 0:01:20]} 16. Bxh6 {[%emt 0:00:16]} Bxf3 {[%emt 0:00:45]} 17. Bxf3 {[%emt 0:02:33]} Qf5 {[%emt 0:00:15]} 18. Ng5 {[%emt 0:00:17]} Na5 {[%emt 0:01:17]} 19. Qxf7+ {[%emt 0:02:49]} Qxf7 {[%emt 0:00:10]} 20. Nxf7 {[%emt 0:00:02]} Kxf7 {[%emt 0:00:12]} 21. Bxg7 {[%emt 0:00:08]} Kxg7 {[%emt 0:00:00]} 22. Rad1 {[%emt 0:00:20]} exd4 {[%emt 0:01:27]} 23. Rxe8 {[%emt 0:00:04]} Rxe8 {[%emt 0:00:00]} 24. Rxd4 {[%emt 0:00:04]} Re7 {[%emt 0:01:05]} 25. Bd5 {[%emt 0:00:40]} c6 {[%emt 0:00:25]} 26. Bf3 {[%emt 0:00:04]} c5 {[%emt 0:00:05]} 27. Rf4 {[%emt 0:00:29]} Nb3 {[%emt 0:00:08]} 28. Kg2 {[%emt 0:00:39]} Nd2 {[%emt 0:00:18]} 29. Bd5 {[%emt 0:00:19]} b5 {[%emt 0:00:16]} 30. b4 {[%emt 0:00:17]} Nb1 {[%emt 0:00:28]} 31. bxc5 {[%emt 0:00:13]} Nxc3 {[%emt 0:00:03]} 32. Bf3 {[%emt 0:00:02]} Rb7 {[%emt 0:00:06]} 33. Bxb7 {[%emt 0:00:04]} 1-0

[Event "European Online Club-ch-H 2021"]
[Site "Online"]
[Date "2021.03.27"]
[Round "6.10"]
[White "Bromann, Thorbjorn"]
[Black "Eljanov, Pavel"]
[Result "0-1"]
[ECO "D01"]
[WhiteElo "2392"]
[BlackElo "2672"]
[Annotator "ChessBase"]
[PlyCount "92"]
[EventDate "2021.03.27"]
[EventType "team-tourn"]
[EventCountry "NET"]
[SourceTitle "playchess.com"]
[Source "ChessBase"]
[SourceQuality "1"]
[TimeControl "900+5"]

1. d4 {[%emt 0:00:00]} Nf6 {[%emt 0:00:08]} 2. Nc3 {[%emt 0:00:02]} d5 {[%emt 0:00:07]} 3. Bg5 {[%emt 0:00:03]} h6 {[%emt 0:00:02]} 4. Bxf6 {[%emt 0:00:28]} exf6 {[%emt 0:00:02]} 5. e3 {[%emt 0:00:10]} c6 {[%emt 0:00:04]} 6. Bd3 {[%emt 0:00:05]} Nd7 {[%emt 0:00:30]} 7. Qf3 {[%emt 0:00:25]} g6 {[%emt 0:00:07]} 8. g4 {[%emt 0:00:08]} h5 {[%emt 0:00:20]} 9. h3 {[%emt 0:00:16]} Nb6 {[%emt 0:00:28]} 10. gxh5 {[%emt 0:01:23]} Rxh5 {[%emt 0:00:04]} 11. Nge2 {[%emt 0:00:01]} Bd6 {[%emt 0:01:07]} 12. O-O-O {[%emt 0:00:04]} f5 {[%emt 0:00:16]} 13. Ng3 {[%emt 0:00:44]} Rh4 {[%emt 0:00:28]} 14. Nce2 {[%emt 0:01:07]} Be6 {[%emt 0:00:44]} 15. Qg2 {[%emt 0:01:16]} Nd7 {[%emt 0:02:13]} 16. f4 {[%emt 0:00:27]} Qc7 {[%emt 0:00:55]} 17. Ng1 {[%emt 0:00:06]} Nf6 {[%emt 0:01:26]} 18. Nf3 {[%emt 0:00:12]} Rh6 {[%emt 0:00:02]} 19. h4 {[%emt 0:02:22]} O-O-O {[%emt 0:01:41]} 20. Rh3 {[%emt 0:01:34]} Rdh8 {[%emt 0:00:28]} 21. Rdh1 {[%emt 0:00:05]} c5 {[%emt 0:01:20]} 22. dxc5 {[%emt 0:02:28]} Bxc5 {[%emt 0:00:04]} 23. Nf1 {[%emt 0:00:10]} d4 {[%emt 0:00:41]} 24. exd4 {[%emt 0:00:09]} Qxf4+ {[%emt 0:00:13]} 25. Qd2 {[%emt 0:00:04]} Bd6 {[%emt 0:00:03]} 26. Ne3 {[%emt 0:00:40]} Ng4 {[%emt 0:01:59]} 27. Re1 {[%emt 0:00:13]} Kb8 {[%emt 0:00:08]} 28. d5 {[%emt 0:00:23]} Bd7 {[%emt 0:00:21]} 29. Ng5 {[%emt 0:00:38]} Rxh4 {[%emt 0:00:35]} 30. Rxh4 {[%emt 0:00:24]} Rxh4 {[%emt 0:00:02]} 31. Nxf7 {[%emt 0:00:01]} Bb4 {[%emt 0:00:15]} 32. c3 {[%emt 0:00:07]} Rh2 {[%emt 0:00:02]} 33. Re2 {[%emt 0:00:44]} Rxe2 {[%emt 0:00:04]} 34. Bxe2 {[%emt 0:00:02]} Nxe3 {[%emt 0:00:11]} 35. cxb4 {[%emt 0:00:02]} Nxd5 {[%emt 0:00:03]} 36. a3 {[%emt 0:00:10]} Kc7 {[%emt 0:00:06]} 37. Qxf4+ {[%emt 0:00:30]} Nxf4 {[%emt 0:00:02]} 38. Bf3 {[%emt 0:00:00]} Bc6 {[%emt 0:00:07]} 39. Bxc6 {[%emt 0:00:15]} Kxc6 {[%emt 0:00:03]} 40. Kd2 {[%emt 0:00:00]} Kd5 {[%emt 0:00:02]} 41. Ke3 {[%emt 0:00:13]} Ne6 {[%emt 0:00:03]} 42. b3 {[%emt 0:00:08]} g5 {[%emt 0:00:06]} 43. b5 {[%emt 0:00:07]} b6 {[%emt 0:00:13]} 44. Nh6 {[%emt 0:00:07]} Nd4 {[%emt 0:00:07]} 45. a4 {[%emt 0:00:06]} f4+ {[%emt 0:00:03]} 46. Kd3 {[%emt 0:00:01]} Nxb3 {[%emt 0:00:01]} 0-1

[Event "European Online Club-ch-H 2021"]
[Site "Online"]
[Date "2021.03.27"]
[Round "6.11"]
[White "Kuzubov, Yuriy"]
[Black "Aabling-Thomsen, Jakob"]
[Result "1-0"]
[ECO "B07"]
[WhiteElo "2642"]
[BlackElo "2348"]
[Annotator "ChessBase"]
[PlyCount "93"]
[EventDate "2021.03.27"]
[EventType "team-tourn"]
[EventCountry "NET"]
[SourceTitle "playchess.com"]
[Source "ChessBase"]
[SourceQuality "1"]
[TimeControl "900+5"]

1. d4 {[%emt 0:00:00]} Nf6 {[%emt 0:00:03]} 2. Nf3 {[%emt 0:00:03]} g6 {[%emt 0:00:03]} 3. Nbd2 {[%emt 0:00:01]} Bg7 {[%emt 0:00:29]} 4. e4 {[%emt 0:00:04]} d6 {[%emt 0:00:00]} 5. Be2 {[%emt 0:00:08]} O-O {[%emt 0:00:03]} 6. O-O {[%emt 0:00:03]} Nc6 {[%emt 0:00:03]} 7. c3 {[%emt 0:00:07]} e5 {[%emt 0:00:08]} 8. dxe5 {[%emt 0:00:02]} dxe5 {[%emt 0:00:05]} 9. Re1 {[%emt 0:00:13]} h6 {[%emt 0:00:11]} 10. Qc2 {[%emt 0:00:08]} Nh5 {[%emt 0:00:08]} 11. Bb5 {[%emt 0:00:10]} Qf6 {[%emt 0:00:16]} 12. Nf1 {[%emt 0:00:17]} Bg4 {[%emt 0:00:30]} 13. N3d2 {[%emt 0:00:07]} a6 {[%emt 0:00:17]} 14. Ba4 {[%emt 0:00:21]} Nf4 {[%emt 0:00:09]} 15. f3 {[%emt 0:00:17]} Be6 {[%emt 0:00:13]} 16. Bb3 {[%emt 0:00:11]} Rad8 {[%emt 0:00:12]} 17. Ne3 {[%emt 0:00:17]} h5 {[%emt 0:00:20]} 18. Ndf1 {[%emt 0:00:49]} Bh6 {[%emt 0:01:48]} 19. Bxe6 {[%emt 0:00:51]} fxe6 {[%emt 0:00:07]} 20. Rd1 {[%emt 0:00:51]} Qg5 {[%emt 0:00:32]} 21. g3 {[%emt 0:01:36]} Rxd1 {[%emt 0:01:31]} 22. Nxd1 {[%emt 0:00:29]} h4 {[%emt 0:00:20]} 23. Nf2 {[%emt 0:00:32]} hxg3 {[%emt 0:01:05]} 24. hxg3 {[%emt 0:00:03]} Kg7 {[%emt 0:02:18]} 25. Ng4 {[%emt 0:00:24]} Rh8 {[%emt 0:00:48]} 26. gxf4 {[%emt 0:00:10]} exf4 {[%emt 0:00:00]} 27. Nfh2 {[%emt 0:00:27]} Qh5 {[%emt 0:00:29]} 28. Qg2 {[%emt 0:00:51]} Bg5 {[%emt 0:00:40]} 29. Bd2 {[%emt 0:00:05]} e5 {[%emt 0:00:29]} 30. Be1 {[%emt 0:00:06]} Rd8 {[%emt 0:00:07]} 31. Qe2 {[%emt 0:00:14]} Bh4 {[%emt 0:00:50]} 32. Rd1 {[%emt 0:00:05]} Rd6 {[%emt 0:00:12]} 33. Rd5 {[%emt 0:00:24]} Bg3 {[%emt 0:00:12]} 34. Bxg3 {[%emt 0:00:13]} fxg3 {[%emt 0:00:03]} 35. Nf1 {[%emt 0:00:02]} Qh4 {[%emt 0:00:40]} 36. Rxd6 {[%emt 0:00:25]} cxd6 {[%emt 0:00:03]} 37. Qd2 {[%emt 0:00:05]} Nd8 {[%emt 0:00:33]} 38. Qxd6 {[%emt 0:00:22]} Nf7 {[%emt 0:00:02]} 39. Qd7 {[%emt 0:00:19]} Qg5 {[%emt 0:00:09]} 40. Kg2 {[%emt 0:00:30]} b5 {[%emt 0:00:45]} 41. Nxg3 {[%emt 0:00:09]} b4 {[%emt 0:00:18]} 42. cxb4 {[%emt 0:00:04]} Qc1 {[%emt 0:00:06]} 43. Qe7 {[%emt 0:00:34]} Qd2+ {[%emt 0:00:06]} 44. Kh3 {[%emt 0:00:16]} Qf4 {[%emt 0:00:08]} 45. a4 {[%emt 0:00:26]} Kg8 {[%emt 0:00:32]} 46. Nf6+ {[%emt 0:00:03]} Kg7 {[%emt 0:00:16]} 47. Nfh5+ {[%emt 0:00:04]} 1-0

[Event "European Online Club-ch-H 2021"]
[Site "Online"]
[Date "2021.03.27"]
[Round "6.12"]
[White "Hald Falkesgaard, Jeppe"]
[Black "Brodsky, Michail"]
[Result "0-1"]
[ECO "A22"]
[WhiteElo "1986"]
[BlackElo "2524"]
[Annotator "ChessBase"]
[PlyCount "116"]
[EventDate "2021.03.27"]
[EventType "team-tourn"]
[EventCountry "NET"]
[SourceTitle "playchess.com"]
[Source "ChessBase"]
[SourceQuality "1"]
[TimeControl "900+5"]

1. c4 {[%emt 0:00:00]} Nf6 {[%emt 0:00:07]} 2. Nc3 {[%emt 0:00:03]} e5 {[%emt 0:00:02]} 3. e4 {[%emt 0:00:03]} Bc5 {[%emt 0:00:07]} 4. Nf3 {[%emt 0:00:02]} d6 {[%emt 0:00:04]} 5. d4 {[%emt 0:00:12]} exd4 {[%emt 0:00:04]} 6. Nxd4 {[%emt 0:00:02]} O-O {[%emt 0:00:02]} 7. Be2 {[%emt 0:00:05]} Bb4 {[%emt 0:00:07]} 8. f3 {[%emt 0:00:17]} Bxc3+ {[%emt 0:00:05]} 9. bxc3 {[%emt 0:00:03]} Nbd7 {[%emt 0:00:01]} 10. O-O {[%emt 0:00:04]} Re8 {[%emt 0:00:10]} 11. Qe1 {[%emt 0:00:12]} Ne5 {[%emt 0:00:08]} 12. Qh4 {[%emt 0:00:17]} Ng6 {[%emt 0:00:04]} 13. Qg3 {[%emt 0:00:03]} Nh5 {[%emt 0:00:03]} 14. Qg5 {[%emt 0:00:12]} Qxg5 {[%emt 0:00:11]} 15. Bxg5 {[%emt 0:00:04]} Nhf4 {[%emt 0:00:02]} 16. Rab1 {[%emt 0:00:25]} h6 {[%emt 0:00:16]} 17. Bxf4 {[%emt 0:00:03]} Nxf4 {[%emt 0:00:01]} 18. g3 {[%emt 0:00:18]} Nxe2+ {[%emt 0:00:05]} 19. Nxe2 {[%emt 0:00:03]} b6 {[%emt 0:00:02]} 20. Nd4 {[%emt 0:00:05]} Bd7 {[%emt 0:00:24]} 21. Rbd1 {[%emt 0:00:18]} a6 {[%emt 0:00:14]} 22. Rd2 {[%emt 0:00:58]} Re5 {[%emt 0:00:06]} 23. Nb3 {[%emt 0:00:43]} a5 {[%emt 0:01:00]} 24. Rfd1 {[%emt 0:00:48]} a4 {[%emt 0:00:30]} 25. Nc1 {[%emt 0:00:14]} Rc5 {[%emt 0:00:21]} 26. Nd3 {[%emt 0:01:35]} Rca5 {[%emt 0:00:29]} 27. Nb4 {[%emt 0:00:38]} Be6 {[%emt 0:00:16]} 28. Nd5 {[%emt 0:00:19]} Rc5 {[%emt 0:00:02]} 29. Rd4 {[%emt 0:00:17]} a3 {[%emt 0:00:02]} 30. Rb1 {[%emt 0:02:19]} Kf8 {[%emt 0:01:38]} 31. f4 {[%emt 0:01:02]} f5 {[%emt 0:00:26]} 32. Re1 {[%emt 0:01:19]} fxe4 {[%emt 0:00:55]} 33. Rexe4 {[%emt 0:00:29]} Bf5 {[%emt 0:00:30]} 34. Re7 {[%emt 0:00:41]} Rxd5 {[%emt 0:00:24]} 35. Rxd5 {[%emt 0:00:02]} Kxe7 {[%emt 0:00:02]} 36. Rxf5 {[%emt 0:00:01]} Ra4 {[%emt 0:00:02]} 37. c5 {[%emt 0:00:40]} bxc5 {[%emt 0:00:34]} 38. Rd5 {[%emt 0:00:05]} c6 {[%emt 0:00:47]} 39. Rd3 {[%emt 0:00:10]} d5 {[%emt 0:00:02]} 40. Kf2 {[%emt 0:00:06]} Kd6 {[%emt 0:00:21]} 41. Kf3 {[%emt 0:00:19]} Ra7 {[%emt 0:00:30]} 42. h4 {[%emt 0:00:40]} c4 {[%emt 0:00:21]} 43. Re3 {[%emt 0:00:26]} Rb7 {[%emt 0:00:03]} 44. Re2 {[%emt 0:00:11]} Rb1 {[%emt 0:00:10]} 45. Kg4 {[%emt 0:00:47]} Rb2 {[%emt 0:00:09]} 46. Re8 {[%emt 0:00:08]} Rc2 {[%emt 0:00:19]} 47. Rg8 {[%emt 0:00:45]} Rxc3 {[%emt 0:00:03]} 48. Rxg7 {[%emt 0:00:01]} Rc1 {[%emt 0:00:04]} 49. Rg6+ {[%emt 0:00:06]} Kc5 {[%emt 0:00:05]} 50. Rxh6 {[%emt 0:00:02]} Rf1 {[%emt 0:00:04]} 51. f5 {[%emt 0:00:15]} c3 {[%emt 0:00:02]} 52. Kg5 {[%emt 0:00:12]} c2 {[%emt 0:00:03]} 53. Kg6 {[%emt 0:00:06]} c1=Q {[%emt 0:00:04]} 54. g4 {[%emt 0:00:01]} Qf4 {[%emt 0:00:09]} 55. Rh7 {[%emt 0:00:09]} Qxg4+ {[%emt 0:00:03]} 56. Kf6 {[%emt 0:00:10]} Rxf5+ {[%emt 0:00:05]} 57. Ke7 {[%emt 0:00:02]} Re5+ {[%emt 0:00:03]} 58. Kd8 {[%emt 0:00:08]} Qg8+ {[%emt 0:00:05]} 0-1